fUSD/lending_fUSD_20240108
["ID","MTS","AMOUNT","RATE_DAILY","PERIOD"]
[310724862,1704677444278,-154.82299,0.0003,7]
[310724864,1704677444286,-500.0,0.0003,3]
[310724866,1704677444295,-200.0,0.0003,2]
[310724868,1704677444305,-3000.0,0.0003,2]
[310724870,1704677444314,-157.85,0.0003,2]
[310724872,1704677444323,-70564.9132026,0.00030001,2]
[310724873,1704677444332,-157.0,0.0003001,2]
[310724874,1704677444341,-2249.00355665,0.00030021,2]
[310724875,1704677444352,-556.09344325,0.00030021,2]
[310724876,1704677444361,-586.6982258,0.0003003,2]
[310724877,1704677444373,-4323.20736025,0.0003003,2]
[310724878,1704677444396,-1150.81980858,0.0003003,2]
[310724879,1704677444407,-440.4400024,0.0003003,2]
[310724880,1704677444418,-1183.20354418,0.0003003,2]
[310724881,1704677444427,-150.0,0.00030041,2]
[310724882,1704677444436,-150.0,0.00030041,2]
[310724883,1704677444445,-177.23497,0.00030042,7]
[310724884,1704677444454,-177.23497,0.00030042,7]
[310724885,1704677444463,-1813.5386111,0.00030042,2]
[310724886,1704677444473,-1113.85024973,0.000301,4]
[310724887,1704677444482,-462.81265707,0.000301,4]
[310724888,1704677444491,-500.0,0.000301,30]
[310724889,1704677444500,-200.0,0.000301,2]
[310724890,1704677444509,-3732.08566906,0.000301,5]
[310724891,1704677444524,-1267.91433094,0.000301,5]
[310724892,1704677444533,-3409.41586474,0.000301,3]
[310724893,1704677444542,-4000.0,0.000301,2]
[310724894,1704677444551,-500.0,0.00030129,7]
[310724895,1704677444562,-344.67946594,0.00030136,4]
[310724896,1704677444571,-35690.13443392,0.00030136,2]
[310724897,1704677444579,-15603.54274255,0.00030136,2]
[310724898,1704677444588,-434.0,0.00030137,5]
[310724899,1704677444598,-10000.0,0.00030137,2]
[310724900,1704677444608,-7684.36894121,0.00030141,2]
[310724901,1704677444617,-3178.68044513,0.00030251,2]
[310724903,1704677446170,-1018.85108903,0.00029999,2]
[310724904,1704677446180,-4505.68849608,0.00030251,2]
[310724905,1704677446190,-1647.55422329,0.00030264,2]
[310724906,1704677446201,-626.70071898,0.00030264,2]
[310724907,1704677446220,-3063.26093304,0.00030264,2]
[310724908,1704677446229,-109.20195243,0.00030283,2]
[310724909,1704677446323,-56.20804757,0.00030283,2]
[310724910,1704677446333,-244.75908447,0.00030358,2]
[310724911,1704677446345,-130.94091553,0.00030358,2]
[310724912,1704677446356,-296.32572087,0.00030362,2]
[310724913,1704677446373,-550.66084252,0.00030362,2]
[310724914,1704677446392,-647.59252773,0.00030362,2]
[310724915,1704677446407,-4481.35692888,0.00030362,2]
[310724996,1704678061839,-5000.0,0.00034587,31]
[310724997,1704678061862,-1000.0,0.00034587,120]
[310724998,1704678061889,-2093.01117536,0.00034587,120]
[310724999,1704678061911,-3679.63457935,0.00034587,30]
[310725000,1704678061933,-17746.63000647,0.00034587,30]
[310725001,1704678061956,-21305.19594815,0.00034587,30]
[310725002,1704678061980,-13100.61012729,0.00034587,30]
[310725003,1704678062002,-27765.03501134,0.00034587,30]
[310725004,1704678062033,-6975.3107343,0.00034587,30]
[310725005,1704678062055,-6939.1820694,0.00034587,30]
[310725006,1704678062078,-2818.0,0.00034587,120]
[310725007,1704678062100,-231.0,0.00034587,120]
[310725008,1704678062122,-35871.0203,0.00034587,30]
[310725009,1704678062146,-1946.670701,0.00034587,30]
[310725010,1704678062168,-218.87055108,0.00034587,120]
[310725011,1704678062195,-304.77779,0.00034587,30]
[310725012,1704678062230,-241.32014857,0.00034587,120]
[310725013,1704678062255,-980.97764593,0.00034587,120]
[310725014,1704678062277,-1964.895122,0.00034587,30]
[310725015,1704678073336,-4683.0,0.00030659,30]
[310725016,1704678073363,-600.0,0.00031,32]
[310725017,1704678073386,-500.0,0.00031,30]
[310725018,1704678073419,-600.0,0.00032,33]
[310725019,1704678073443,-500.0,0.000324,30]
[310725020,1704678073466,-177.0,0.0003241,34]
[310725021,1704678073509,-1016.46396366,0.00032876,30]
[310725022,1704678073545,-568.64422787,0.00032876,30]
[310725023,1704678073651,-1000.0,0.00032877,120]
[310725024,1704678073675,-1000.0,0.00032877,120]
[310725025,1704678073698,-1000.0,0.00032877,120]
[310725026,1704678073720,-1000.0,0.00032877,120]
[310725027,1704678073743,-1000.0,0.00032877,120]
[310725028,1704678073765,-501.0,0.00032877,120]
[310725029,1704678073789,-1000.0,0.00032877,120]
[310725030,1704678073816,-1000.0,0.00032877,120]
[310725031,1704678073842,-1000.0,0.00032877,120]
[310725032,1704678073866,-1000.0,0.00032877,120]
[310725033,1704678073895,-1000.0,0.00032877,120]
[310725034,1704678073918,-1000.0,0.00032877,120]
[310725035,1704678073942,-1000.0,0.00032877,120]
[310725036,1704678073965,-1000.0,0.00032877,120]
[310725037,1704678073989,-1000.0,0.00032877,120]
[310725038,1704678074013,-1000.0,0.00032877,120]
[310725039,1704678074036,-1000.0,0.00032877,120]
[310725040,1704678074059,-1000.0,0.00032877,120]
[310725041,1704678074082,-807.0,0.00032877,120]
[310725042,1704678074105,-150.0,0.00032877,30]
[310725043,1704678074127,-150.0,0.00032877,30]
[310725044,1704678074153,-150.0,0.00032877,30]
[310725045,1704678074176,-150.0,0.00032877,30]
[310725046,1704678074198,-150.0,0.00032877,30]
[310725047,1704678074221,-150.0,0.00032877,30]
[310725048,1704678074246,-150.0,0.00032877,30]
[310725049,1704678074272,-150.0,0.00032877,30]
[310725050,1704678074296,-150.0,0.00032877,30]
[310725051,1704678074319,-150.0,0.00032877,30]
[310725052,1704678074342,-150.0,0.00032877,30]
[310725053,1704678074365,-150.0,0.00032877,30]
[310725054,1704678074388,-150.0,0.00032877,30]
[310725055,1704678074411,-150.0,0.00032877,30]
[310725056,1704678074433,-150.0,0.00032877,30]
[310725057,1704678074457,-150.0,0.00032877,30]
[310725058,1704678074480,-150.0,0.00032877,30]
[310725059,1704678074503,-150.0,0.00032877,30]
[310725060,1704678074526,-150.0,0.00032877,30]
[310725061,1704678074549,-150.0,0.00032877,30]
[310725062,1704678074572,-150.0,0.00032877,30]
[310725063,1704678074595,-150.0,0.00032877,30]
[310725064,1704678074617,-150.0,0.00032877,30]
[310725065,1704678074642,-150.0,0.00032877,30]
[310725066,1704678074665,-150.0,0.00032877,30]
[310725067,1704678074687,-150.0,0.00032877,30]
[310725068,1704678074709,-150.0,0.00032877,30]
[310725069,1704678074732,-150.0,0.00032877,30]
[310725070,1704678074755,-150.0,0.00032877,30]
[310725071,1704678074778,-150.0,0.00032877,30]
[310725072,1704678074801,-150.0,0.00032877,30]
[310725073,1704678074824,-150.0,0.00032877,30]
[310725074,1704678074847,-150.0,0.00032877,30]
[310725075,1704678074869,-150.0,0.00032877,30]
[310725076,1704678075123,-150.0,0.00032877,30]
[310725077,1704678075150,-150.0,0.00032877,30]
[310725078,1704678075173,-150.0,0.00032877,30]
[310725079,1704678075196,-150.0,0.00032877,30]
[310725080,1704678075218,-150.0,0.00032877,30]
[310725081,1704678075240,-150.0,0.00032877,30]
[310725082,1704678075263,-150.0,0.00032877,30]
[310725083,1704678075286,-150.0,0.00032877,30]
[310725084,1704678075309,-150.0,0.00032877,30]
[310725085,1704678075332,-150.0,0.00032877,30]
[310725086,1704678075356,-150.0,0.00032877,30]
[310725087,1704678075379,-150.0,0.00032877,30]
[310725088,1704678075408,-150.0,0.00032877,30]
[310725089,1704678075431,-150.0,0.00032877,30]
[310725090,1704678075454,-150.0,0.00032877,30]
[310725091,1704678075477,-150.0,0.00032877,30]
[310725092,1704678075500,-150.0,0.00032877,30]
[310725093,1704678075523,-150.0,0.00032877,30]
[310725094,1704678075546,-150.0,0.00032877,30]
[310725095,1704678075569,-150.0,0.00032877,30]
[310725096,1704678075592,-150.0,0.00032877,30]
[310725097,1704678075615,-150.0,0.00032877,30]
[310725098,1704678075640,-150.0,0.00032877,30]
[310725099,1704678075663,-150.0,0.00032877,30]
[310725100,1704678075685,-150.0,0.00032877,30]
[310725101,1704678075707,-150.0,0.00032877,30]
[310725102,1704678075730,-150.0,0.00032877,30]
[310725103,1704678075753,-150.0,0.00032877,30]
[310725104,1704678075776,-150.0,0.00032877,30]
[310725105,1704678075801,-150.0,0.00032877,30]
[310725106,1704678075823,-150.0,0.00032877,30]
[310725107,1704678075846,-150.0,0.00032877,30]
[310725108,1704678075868,-150.0,0.00032877,30]
[310725109,1704678075901,-150.0,0.00032877,30]
[310725110,1704678075924,-150.0,0.00032877,30]
[310725111,1704678075949,-150.0,0.00032877,30]
[310725112,1704678075973,-150.0,0.00032877,30]
[310725113,1704678075996,-150.0,0.00032877,30]
[310725114,1704678076018,-150.0,0.00032877,30]
[310725115,1704678076040,-150.0,0.00032877,30]
[310725116,1704678076062,-150.0,0.00032877,30]
[310725117,1704678076085,-150.0,0.00032877,30]
[310725118,1704678076109,-150.0,0.00032877,30]
[310725119,1704678076132,-150.0,0.00032877,30]
[310725120,1704678076157,-150.0,0.00032877,30]
[310725121,1704678076180,-150.0,0.00032877,30]
[310725122,1704678076203,-150.0,0.00032877,30]
[310725123,1704678076225,-150.0,0.00032877,30]
[310725124,1704678076248,-150.0,0.00032877,30]
[310725125,1704678076270,-150.0,0.00032877,30]
[310725126,1704678076293,-150.0,0.00032877,30]
[310725127,1704678076316,-150.0,0.00032877,30]
[310725128,1704678076339,-150.0,0.00032877,30]
[310725129,1704678076361,-150.0,0.00032877,30]
[310725130,1704678076382,-150.0,0.00032877,30]
[310725131,1704678076406,-150.0,0.00032877,30]
[310725132,1704678076427,-150.0,0.00032877,30]
[310725133,1704678076449,-150.0,0.00032877,30]
[310725134,1704678076471,-150.0,0.00032877,30]
[310725135,1704678076493,-150.0,0.00032877,30]
[310725136,1704678076515,-150.0,0.00032877,30]
[310725137,1704678076537,-150.0,0.00032877,30]
[310725138,1704678076559,-150.0,0.00032877,30]
[310725139,1704678076589,-150.0,0.00032877,30]
[310725140,1704678076611,-150.0,0.00032877,30]
[310725141,1704678076634,-150.0,0.00032877,30]
[310725142,1704678076663,-600.0,0.00033,34]
[310725143,1704678076759,-150.0,0.00033272,120]
[310725144,1704678076851,-233.67165177,0.00033675,30]
[310725145,1704678076937,-250.0,0.000337,120]
[310725146,1704678076961,-150.0,0.00033709,120]
[310725147,1704678076985,-150.0,0.00033732,120]
[310725148,1704678077009,-150.0,0.00033759,120]
[310725149,1704678077034,-150.0,0.00033773,120]
[310725150,1704678077058,-150.0,0.00033895,120]
[310725151,1704678077138,-500.0,0.00034,120]
[310725152,1704678077166,-600.0,0.00034,35]
[310725153,1704678077190,-177.0,0.0003403,38]
[310725154,1704678077267,-250.0,0.000345,120]
[310725155,1704678077338,-150.0,0.00034572,120]
[310725156,1704678077413,-150.0,0.00034971,120]
[310725157,1704678077436,-150.0,0.00034987,120]
[310725158,1704678077460,-1200.0,0.00035,36]
[310725159,1704678077483,-250.0,0.00035,120]
[310725160,1704678077505,-20000.0,0.00035,30]
[310725161,1704678077528,-153.35507286,0.00035,33]
[310725162,1704678077779,-9635.5398365,0.00035,30]
[310725163,1704678077809,-2000.0,0.00035,42]
[310725164,1704678077833,-1557.91842699,0.00035,30]
[310725165,1704678077857,-150.0,0.00035,30]
[310725166,1704678077923,-150.0,0.000352,30]
[310725167,1704678077981,-150.0,0.000354,30]
[310725168,1704678078006,-150.0,0.00035424,120]
[310725169,1704678078030,-3664.22070779,0.000355,120]
[310725170,1704678078054,-150.0,0.000356,30]
[310725171,1704678078110,-177.0,0.0003565,41]
[310725172,1704678078147,-150.0,0.0003577,120]
[310725173,1704678078170,-150.0,0.000358,30]
[310725174,1704678078223,-150.0,0.00035931,120]
[310725175,1704678078247,-150.0,0.00035983,120]
[310725176,1704678078272,-500.0,0.00036,120]
[310725177,1704678078295,-6673.0,0.00036,30]
[310725178,1704678078318,-150.0,0.00036,30]
[310725179,1704678078341,-1200.0,0.00036,37]
[310725180,1704678078364,-20000.0,0.00036,45]
[310725181,1704678078386,-20000.0,0.00036,30]
[310725182,1704678078412,-19452.3052546,0.00036,38]
[310725183,1704678078434,-13185.03764802,0.00036,45]
[310725184,1704678078458,-10000.0,0.00036,30]
[310725185,1704678078480,-10000.0,0.00036,30]
[310725186,1704678078505,-150.0,0.00036128,120]
[310725187,1704678078535,-948.34,0.00036164,45]
[310725188,1704678078567,-1027.8,0.00036164,45]
[310725189,1704678078604,-150.0,0.000362,30]
[310725190,1704678078627,-5000.0,0.0003625,30]
[310725191,1704678078655,-948.34,0.00036383,47]
[310725192,1704678078679,-1027.8,0.00036383,47]
[310725193,1704678078702,-150.0,0.000364,30]
[310725194,1704678078749,-1000.0,0.00036438,120]
[310725195,1704678078773,-150.0,0.0003647,60]
[310725196,1704678078796,-288.27,0.0003649,60]
[310725197,1704678078821,-590.9,0.000365,120]
[310725198,1704678078844,-150.0,0.000366,30]
[310725199,1704678078867,-948.34,0.00036602,49]
[310725200,1704678078891,-1027.8,0.00036602,49]
[310725201,1704678078915,-150.0,0.00036609,120]
[310725202,1704678078938,-8074.0,0.000367,58]
[310725203,1704678078961,-255.07233838,0.000367,60]
[310725204,1704678079008,-2400.0,0.00036747,120]
[310725205,1704678079031,-150.0,0.000368,30]
[310725206,1704678079056,-948.34,0.00036821,51]
[310725207,1704678079079,-1027.8,0.00036821,51]
[310725208,1704678079101,-8202.9,0.0003688,60]
[310725209,1704678079124,-8199.0,0.0003689,60]
[310725210,1704678079150,-150.0,0.0003697,60]
[310725211,1704678079173,-8199.0,0.0003697,60]
[310725212,1704678079195,-281.85,0.0003697,60]
[310725213,1704678079218,-8199.0,0.0003697,60]
[310725214,1704678079241,-194.49,0.0003697,60]
[310725215,1704678079264,-7726.0,0.0003697,60]
[310725216,1704678079286,-3721.0,0.0003697,60]
[310725217,1704678079308,-2624.0,0.0003697,60]
[310725218,1704678079331,-7726.0,0.0003697,60]
[310725219,1704678079354,-1381.0,0.0003697,60]
[310725220,1704678079379,-2624.0,0.0003697,60]
[310725221,1704678079402,-3721.0,0.0003697,60]
[310725222,1704678079424,-1381.0,0.0003697,60]
[310725223,1704678079447,-150.0,0.0003698,60]
[310725224,1704678079470,-8199.0,0.0003698,60]
[310725225,1704678079494,-150.0,0.0003698,60]
[310725226,1704678079517,-150.0,0.0003698,60]
[310725227,1704678079541,-8199.0,0.0003698,60]
[310725228,1704678079571,-8199.0,0.0003698,60]
[310725229,1704678079593,-150.0,0.0003698,60]
[310725230,1704678079615,-186.21,0.0003698,60]
[310725231,1704678079637,-7726.0,0.0003698,60]
[310725232,1704678079662,-3721.0,0.0003698,60]
[310725233,1704678079684,-2624.0,0.0003698,60]
[310725234,1704678079707,-1381.0,0.0003698,60]
[310725235,1704678079729,-7726.0,0.0003698,60]
[310725236,1704678079751,-2624.0,0.0003698,60]
[310725237,1704678079774,-3721.0,0.0003698,60]
[310725238,1704678079798,-2624.0,0.0003698,60]
[310725239,1704678079823,-3721.0,0.0003698,60]
[310725240,1704678079847,-1381.0,0.0003698,60]
[310725241,1704678079872,-2632.53,0.0003698,60]
[310725242,1704678079896,-3722.92,0.0003698,60]
[310725243,1704678079918,-1381.0,0.0003698,60]
[310725244,1704678079939,-1387.39,0.0003698,60]
[310725245,1704678079961,-7726.0,0.0003698,60]
[310725246,1704678079989,-7735.46,0.0003698,60]
[310725247,1704678080035,-150.0,0.0003699,60]
[310725248,1704678080059,-150.0,0.0003699,60]
[310725249,1704678080083,-8199.0,0.0003699,60]
[310725250,1704678080108,-150.0,0.0003699,60]
[310725251,1704678080143,-150.0,0.0003699,60]
[310725252,1704678080170,-8199.0,0.0003699,60]
[310725253,1704678080196,-8199.0,0.0003699,60]
[310725254,1704678080221,-150.0,0.0003699,60]
[310725255,1704678080246,-204.44,0.0003699,60]
[310725256,1704678080271,-7726.0,0.0003699,60]
[310725257,1704678080525,-3721.0,0.0003699,60]
[310725258,1704678080549,-2624.0,0.0003699,60]
[310725259,1704678080572,-1381.0,0.0003699,60]
[310725260,1704678080595,-7726.0,0.0003699,60]
[310725261,1704678080618,-3721.0,0.0003699,60]
[310725262,1704678080641,-2624.0,0.0003699,60]
[310725263,1704678080664,-7726.0,0.0003699,60]
[310725264,1704678080688,-2624.0,0.0003699,60]
[310725265,1704678080713,-3721.0,0.0003699,60]
[310725266,1704678080736,-1381.0,0.0003699,60]
[310725267,1704678080760,-2624.0,0.0003699,60]
[310725268,1704678080786,-3721.0,0.0003699,60]
[310725269,1704678080810,-1381.0,0.0003699,60]
[310725270,1704678080834,-1381.0,0.0003699,60]
[310725271,1704678080859,-7726.0,0.0003699,60]
[310725272,1704678080884,-150.0,0.00036997,120]
[310725273,1704678080912,-150.0,0.00037,30]
[310725274,1704678080935,-1200.0,0.00037,38]
[310725275,1704678080958,-1531.79960641,0.00037,120]
[310725276,1704678080982,-10000.0,0.00037,30]
[310725277,1704678081006,-10000.0,0.00037,30]
[310725278,1704678081030,-10000.0,0.00037,30]
[310725279,1704678081053,-21300.0,0.00037,33]
[310725280,1704678081077,-1000.0,0.00037,60]
[310725281,1704678081102,-948.34,0.00037041,53]
[310725282,1704678081126,-1027.8,0.00037041,53]
[310725283,1704678081153,-5813.06563002,0.00037148,30]
[310725284,1704678081177,-150.0,0.000372,30]
[310725285,1704678081205,-150.0,0.0003726,120]
[310725286,1704678081233,-948.34,0.0003726,55]
[310725287,1704678081263,-1027.8,0.0003726,55]
[310725288,1704678081301,-177.0,0.0003727,44]
[310725289,1704678081328,-150.0,0.000374,30]
[310725290,1704678081354,-948.34,0.00037479,57]
[310725291,1704678081379,-1027.8,0.00037479,57]
[310725292,1704678081408,-10000.0,0.000375,30]
[310725293,1704678081431,-2165.81180284,0.000375,30]
[310725294,1704678081454,-161.67,0.00037505,30]
[310725295,1704678081477,-150.76,0.00037505,30]
[310725296,1704678081500,-272.59,0.00037505,30]
[310725297,1704678081540,-150.0,0.000376,30]
[310725298,1704678081564,-948.34,0.00037698,59]
[310725299,1704678081587,-1027.8,0.00037698,59]
[310725300,1704678081610,-5000.33636763,0.000377,30]
[310725301,1704678081634,-150.76,0.00037752,30]
[310725302,1704678081659,-272.59,0.00037752,30]
[310725303,1704678081685,-47899.0,0.0003777,120]
[310725304,1704678081708,-150.0,0.000378,30]
[310725305,1704678081730,-5000.0,0.000378,30]
[310725306,1704678081774,-948.34,0.00037917,61]
[310725307,1704678081802,-1027.8,0.00037917,61]
[310725308,1704678081827,-9273.8676181,0.0003798,30]
[310725309,1704678081851,-150.76,0.00037998,30]
[310725310,1704678081878,-272.59,0.00037998,30]
[310725311,1704678081905,-150.0,0.00038,30]
[310725312,1704678081929,-50000.0,0.00038,30]
[310725313,1704678081956,-1200.0,0.00038,39]
[310725314,1704678081981,-500.0,0.00038,120]
[310725315,1704678082005,-36031.258865,0.00038,30]
[310725316,1704678082031,-722.73292953,0.00038,30]
[310725317,1704678082055,-817.58542812,0.00038,30]
[310725318,1704678082080,-603.0,0.00038,30]
[310725319,1704678082105,-590.97304176,0.00038,120]
[310725320,1704678082129,-500.0,0.00038,120]
[310725321,1704678082158,-10000.0,0.00038,30]
[310725322,1704678082182,-21314.0,0.00038,77]
[310725323,1704678082207,-150.0,0.00038,30]
[310725324,1704678082232,-161.67,0.0003808,30]
[310725325,1704678082268,-4747.89774315,0.000381,30]
[310725326,1704678082291,-200.0,0.000381,120]
[310725327,1704678082315,-948.34,0.00038136,63]
[310725328,1704678082340,-1027.8,0.00038136,63]
[310725329,1704678082365,-162.21427297,0.000382,30]
[310725330,1704678082388,-150.76,0.00038244,30]
[310725331,1704678082413,-272.59,0.00038244,30]
[310725332,1704678082436,-18999.51128289,0.00038289,30]
[310725333,1704678082459,-136213.43470355,0.000383,30]
[310725334,1704678082486,-1500.0,0.00038356,32]
[310725335,1704678082510,-1500.0,0.00038356,35]
[310725336,1704678082533,-1500.0,0.00038356,38]
[310725337,1704678082556,-1500.0,0.00038356,41]
[310725338,1704678082580,-1500.0,0.00038356,44]
[310725339,1704678082603,-1500.0,0.00038356,47]
[310725340,1704678082627,-1223.37861178,0.00038356,50]
[310725341,1704678082654,-948.34,0.00038356,65]
[310725342,1704678082682,-5000.0,0.00038356,32]
[310725343,1704678082706,-5000.0,0.00038356,35]
[310725344,1704678082729,-5000.0,0.00038356,38]
[310725345,1704678082753,-3383.60121139,0.00038356,41]
[310725346,1704678082779,-1027.8,0.00038356,65]
[310725347,1704678082813,-533.76,0.00038356,60]
[310725348,1704678082839,-200.0,0.000384,120]
[310725349,1704678082863,-708.0,0.000384,30]
[310725350,1704678082888,-150.76,0.0003849,60]
[310725351,1704678082918,-272.59,0.0003849,60]
[310725352,1704678082943,-20000.0,0.000385,90]
[310725353,1704678082968,-20000.0,0.000385,90]
[310725354,1704678082992,-20000.0,0.000385,90]
[310725355,1704678083016,-20000.0,0.000385,90]
[310725356,1704678083242,-20000.0,0.000385,90]
[310725357,1704678083266,-20000.0,0.000385,90]
[310725358,1704678083291,-11771.788733,0.000385,90]
[310725359,1704678083314,-2000.0,0.000385,30]
[310725360,1704678083340,-1209.51750596,0.000385,30]
[310725361,1704678083364,-948.34,0.00038575,67]
[310725362,1704678083388,-1027.8,0.00038575,67]
[310725363,1704678083415,-2000.0,0.000386,30]
[310725364,1704678083450,-161.67,0.00038654,60]
[310725365,1704678083474,-2000.0,0.000387,30]
[310725366,1704678083496,-5581.61276557,0.000387,30]
[310725367,1704678083519,-3401.37184713,0.000387,120]
[310725368,1704678083543,-150.76,0.00038736,60]
[310725369,1704678083566,-272.59,0.00038736,60]
[310725370,1704678083591,-6000.0,0.00038748,31]
[310725371,1704678083616,-948.34,0.00038794,69]
[310725372,1704678083640,-1027.8,0.00038794,69]
[310725373,1704678083675,-337.61874012,0.00038799,30]
[310725374,1704678083702,-5718.96122248,0.000388,30]
[310725375,1704678083727,-2000.0,0.000388,30]
[310725376,1704678083753,-8000.0,0.000388,30]
[310725377,1704678083777,-833.957835,0.000388,51]
[310725378,1704678083805,-206.0,0.0003889,47]
[310725379,1704678083829,-2000.0,0.000389,30]
[310725380,1704678083865,-1700.0,0.0003897,60]
[310725381,1704678083891,-1700.0,0.0003897,60]
[310725382,1704678083921,-1700.0,0.0003898,60]
[310725383,1704678083946,-1700.0,0.0003898,60]
[310725384,1704678083970,-1700.0,0.0003898,60]
[310725385,1704678083994,-1706.68,0.0003898,60]
[310725386,1704678084018,-3501.1689109,0.0003898,30]
[310725387,1704678084041,-150.76,0.00038982,60]
[310725388,1704678084065,-272.59,0.00038982,60]
[310725389,1704678084089,-1700.0,0.0003899,60]
[310725390,1704678084113,-1700.0,0.0003899,60]
[310725391,1704678084137,-1700.0,0.0003899,60]
[310725392,1704678084165,-1700.0,0.0003899,60]
[310725393,1704678084189,-990.0,0.00039,30]
[310725394,1704678084213,-500.0,0.00039,30]
[310725395,1704678084236,-500.0,0.00039,120]
[310725396,1704678084258,-220.73861301,0.00039,120]
[310725397,1704678084281,-32221.31069758,0.00039,40]
[310725398,1704678084303,-1000.0,0.00039,120]
[310725399,1704678084327,-1200.0,0.00039,40]
[310725400,1704678084350,-10000.0,0.00039,30]
[310725401,1704678084373,-1000.0,0.00039,120]
[310725402,1704678084399,-10000.0,0.00039,30]
[310725403,1704678084423,-7019.15503756,0.00039,30]
[310725404,1704678084447,-948.34,0.00039013,71]
[310725405,1704678084470,-1027.8,0.00039013,71]
[310725406,1704678084502,-2057.70552523,0.0003922,30]
[310725407,1704678084525,-161.67,0.00039228,60]
[310725408,1704678084548,-150.76,0.00039228,60]
[310725409,1704678084572,-272.59,0.00039228,60]
[310725410,1704678084595,-948.34,0.00039232,73]
[310725411,1704678084619,-1027.8,0.00039232,73]
[310725412,1704678084642,-948.34,0.00039452,75]
[310725413,1704678084669,-1027.8,0.00039452,75]
[310725414,1704678084693,-948.34,0.00039671,77]
[310725415,1704678084716,-1027.8,0.00039671,77]
[310725416,1704678084739,-500000.0,0.000397,33]
[310725417,1704678084763,-1000.0,0.00039848,31]
[310725418,1704678084786,-948.34,0.0003989,79]
[310725419,1704678084810,-1027.8,0.0003989,79]
[310725420,1704678084832,-158668.28714898,0.000399,30]
[310725421,1704678084855,-2787.5802839,0.0003998,30]
[310725422,1704678084878,-1187000.0,0.0003999,60]
[310725423,1704678084903,-113000.0,0.0003999,60]
[310725424,1704678084927,-158.00802893,0.0004,30]
[310725425,1704678084951,-582.84724461,0.0004,30]
[310725426,1704678084975,-300.0,0.0004,30]
[310725427,1704678085000,-588.32747825,0.0004,30]
[310725428,1704678085024,-477.12749073,0.0004,30]
[310725429,1704678085048,-339.7198813,0.0004,120]
[310725430,1704678085072,-1200.0,0.0004,30]
[310725431,1704678085095,-521679.0,0.0004,120]
[310725432,1704678085119,-6440.80349888,0.0004,30]
[310725433,1704678085146,-1000.0,0.0004,60]
[310725434,1704678085170,-1000.0,0.0004,120]
[310725435,1704678085193,-300.0,0.0004,120]
[310725436,1704678085217,-368.0,0.0004,30]
[310725437,1704678085240,-10403.02514612,0.0004,30]
[310725438,1704678085262,-1000.0,0.0004,30]
[310725439,1704678085285,-230.70425813,0.0004,120]
[310725440,1704678085308,-489.88046571,0.0004,120]
[310725441,1704678085331,-1055.40537961,0.0004,30]
[310725442,1704678085355,-209.92480242,0.0004,30]
[310725443,1704678085379,-500.0,0.0004,120]
[310725444,1704678085403,-500.0,0.0004,120]
[310725445,1704678085431,-500.0,0.0004,120]
[310725446,1704678085455,-12802.72751874,0.0004,30]
[310725447,1704678085479,-198.59994301,0.0004,30]